bitfinex/quotes_ETHUSD_20241120
["timestamp","ask_amount","ask_price","bid_price","bid_amount"]
[1732076384879,3.2931824,3093.0,3092.5,0.7968]
[1732076385313,3.2931824,3093.0,3092.6,0.04672196]
[1732076385609,3.2931824,3093.0,3092.5,0.7968]
[1732076385790,3.23319,3093.0,3092.5,0.7968]
[1732076386099,3.23295,3093.2,3092.5,1.12015]
[1732076386604,3.23295,3093.2,3092.6,0.04672409]
[1732076386808,3.23295,3093.2,3092.7,0.32334]
[1732076387377,3.23276,3093.4,3092.7,0.32334]
[1732076387576,3.23276,3093.4,3092.8,0.7968]
[1732076387577,3.2328,3093.3,3092.8,0.7968]
[1732076387777,0.0599924,3093.2,3092.8,0.7968]
[1732076388404,3.23309,3093.1,3092.4,0.7968]
[1732076388608,3.23321,3092.9,3092.4,0.7968]
[1732076388911,3.23309,3093.1,3092.5,0.04672624]
[1732076390294,0.8531924,3093.0,3092.5,0.04672624]
[1732076390494,3.23339,3092.8,3092.5,0.04672624]
[1732076390682,3.2933824,3092.8,3092.4,0.7968]
[1732076391091,3.23325,3092.9,3092.4,1.12017]
[1732076391674,3.23305,3093.1,3092.4,1.12017]
[1732076392410,3.23332,3092.8,3092.4,0.7968]
[1732076392575,3.23321,3092.9,3092.4,0.7968]
[1732076392769,3.23348,3092.7,3092.5,0.0467337]
[1732076392998,3.23348,3092.7,3092.4,0.7968]
[1732076393221,0.0599924,3092.8,3092.4,0.7968]
[1732076393414,3.23304,3093.1,3092.4,1.12017]
[1732076393625,3.635664,3093.1,3092.4,1.12017]
[1732076393778,3.23311,3093.0,3092.4,1.12017]
[1732076394172,3.635664,3093.1,3092.4,0.7968]
[1732076394173,3.23304,3093.1,3092.4,0.7968]
[1732076394394,3.23304,3093.1,3092.5,0.37010178]
[1732076394599,3.23308,3093.1,3092.5,0.32335]
[1732076395401,3.23279,3093.3,3092.5,0.32335]
[1732076395573,3.23301,3093.1,3092.6,0.7657]
[1732076396691,3.23284,3093.3,3092.6,0.7657]
[1732076396878,0.7932,3093.4,3093.0,0.7657]
[1732076396879,3.23271,3093.4,3093.0,0.7657]
[1732076397080,3.2928124,3093.3,3093.0,0.7657]
[1732076397271,3.2928124,3093.3,3093.1,0.04673728]
[1732076397810,3.2928124,3093.3,3093.0,0.7657]
[1732076398022,3.2928124,3093.3,3093.1,0.04673728]
[1732076398023,3.23282,3093.3,3093.1,0.04673728]
[1732076398374,3.2329,3093.2,3093.0,0.7657]
[1732076398573,3.2928924,3093.2,3093.1,0.04673728]
[1732076398774,3.2928924,3093.2,3093.0,0.7657]
[1732076398994,3.233,3093.1,3092.5,1.08905]
[1732076399194,0.0599924,3093.0,3092.5,1.08905]
[1732076399636,3.233,3093.1,3092.5,1.08905]
[1732076400677,3.233,3093.1,3092.6,0.32335]
[1732076401175,0.0599924,3093.0,3092.6,0.32335]
[1732076401475,3.233,3093.1,3092.6,0.32335]
[1732076401680,0.0599924,3093.0,3092.6,0.32335]
[1732076402029,0.0599924,3093.0,3092.5,0.7657]
[1732076402316,3.233,3093.1,3092.5,0.7657]
[1732076402470,3.23327,3092.9,3092.5,0.7657]
[1732076402672,3.23337,3092.8,3092.5,0.7657]
[1732076402913,4.02504,3092.8,3092.2,1.08909]
[1732076403113,3.0,3093.8,3092.8,1.08902]
[1732076403114,4.02441,3093.4,3092.8,1.08902]
[1732076403321,3.23271,3093.4,3092.8,1.08902]
[1732076404104,3.2329,3093.2,3092.8,0.7657]
[1732076404434,0.0599924,3093.3,3092.8,0.7657]
[1732076404435,3.23301,3093.1,3092.8,0.7657]
[1732076404797,3.23301,3093.1,3092.9,0.04673253]
[1732076405101,3.23301,3093.1,3092.5,0.7657]
[1732076405102,3.23322,3092.9,3092.5,0.7657]
[1732076405324,3.23322,3092.9,3092.3,1.08908]
[1732076405325,3.2933224,3092.8,3092.3,1.08908]
[1732076405633,3.23333,3092.8,3092.3,1.08908]
[1732076405788,3.23333,3092.8,3092.4,0.04674328]
[1732076406144,3.23333,3092.8,3092.3,1.08908]
[1732076406145,3.23304,3093.1,3092.3,1.08908]
[1732076406293,3.23304,3093.1,3092.3,1.08907]
[1732076406495,3.23304,3093.1,3092.5,0.32335]
[1732076406793,3.2930324,3093.1,3092.4,0.64672]
[1732076407104,3.23304,3093.1,3092.5,0.3700906]
[1732076407492,0.0599924,3093.0,3092.5,0.0467406]
[1732076407817,3.23328,3092.9,3092.3,1.08908]
[1732076408025,3.23328,3092.9,3092.3,0.7657]
[1732076408208,3.23328,3092.9,3092.4,0.3701186]
[1732076408828,3.23328,3092.9,3092.4,0.32337]
[1732076409328,3.23328,3092.9,3092.3,0.7657]
[1732076409329,3.23333,3092.8,3092.5,0.04674645]
[1732076409528,3.2933224,3092.8,3092.5,0.04674645]
[1732076409691,3.2933224,3092.8,3092.3,0.7657]
[1732076409896,3.2933224,3092.8,3092.6,0.0467443]
[1732076410108,3.2933224,3092.8,3092.3,0.7657]
[1732076411391,3.2933224,3092.8,3092.4,0.0467486]
[1732076411792,3.23333,3092.8,3092.3,0.7657]
[1732076411993,3.23349,3092.7,3092.3,0.7657]
[1732076412224,0.7577,3092.7,3092.1,0.7564]
[1732076412425,3.23353,3092.6,3092.1,0.7564]
[1732076412730,3.23353,3092.6,3092.2,0.04675291]
[1732076413025,0.7577,3092.7,3092.2,0.04675291]
[1732076413230,3.23333,3092.8,3092.2,0.37013291]
[1732076413794,3.23333,3092.8,3092.2,0.32338]
[1732076413995,0.7577,3093.1,3092.5,0.7564]
[1732076414233,3.2331,3093.0,3092.5,0.7564]
[1732076414810,3.2331,3093.0,3092.6,0.04677198]
[1732076415008,6.4663,3093.0,3092.6,0.04677198]
[1732076415221,0.7577,3093.1,3092.6,0.04677198]
[1732076415446,0.0599924,3093.0,3092.6,0.04677198]
[1732076415746,0.0599924,3093.0,3092.6,0.37011198]
[1732076415912,3.233,3093.1,3092.6,0.32334]
[1732076416097,0.7577,3093.4,3092.7,0.04676344]
[1732076416295,0.02,3094.3,3093.1,0.32329]
[1732076416296,0.7577,3093.9,3093.1,0.32329]
[1732076416649,0.7577,3093.9,3093.2,0.04674948]
[1732076416650,3.23239,3093.7,3093.2,0.04674948]
[1732076416939,3.2925624,3093.6,3093.2,0.04674948]
[1732076417141,3.2925624,3093.6,3093.0,0.7564]
[1732076417728,3.2925624,3093.6,3093.0,1.0797]
[1732076417925,3.2925624,3093.6,3093.1,0.04675885]
[1732076418308,3.23239,3093.7,3093.1,0.32329]
[1732076418843,0.7577,3093.9,3093.2,0.04672022]
[1732076418844,3.23258,3093.5,3093.2,0.04672022]
[1732076419065,3.2328,3093.3,3093.0,0.7564]
[1732076419211,0.0599924,3093.4,3092.9,0.32331]
[1732076419212,0.0599924,3093.2,3092.9,0.32331]
[1732076419560,0.7577,3093.4,3092.9,0.32331]
[1732076419962,3.99038,3093.4,3092.8,0.7564]
[1732076420319,3.99038,3093.4,3092.8,1.07972]
[1732076420515,3.99038,3093.4,3092.8,0.7564]
[1732076421068,3.23289,3093.2,3092.8,0.7564]
[1732076421269,0.0599924,3093.1,3092.8,0.7564]
[1732076421449,3.99038,3093.4,3092.8,0.7564]
[1732076421767,3.23303,3093.1,3092.8,0.7564]
[1732076422057,3.23303,3093.1,3092.5,1.07975]
[1732076422058,0.0599924,3093.0,3092.5,1.07975]
[1732076422364,0.0599924,3093.0,3092.5,0.7564]
[1732076422365,3.2931624,3093.0,3092.5,0.7564]
[1732076422660,3.2332,3093.0,3092.5,0.7564]
[1732076422897,3.233,3093.1,3092.5,0.7564]
[1732076423241,3.23282,3093.3,3092.6,0.32335]
[1732076423447,3.233,3093.1,3092.5,1.07976]
[1732076423690,0.0599924,3093.0,3092.5,1.07976]
[1732076424187,3.233,3093.1,3092.5,1.07976]
[1732076424359,0.0599924,3093.0,3092.5,1.07976]
[1732076425275,3.233,3093.1,3092.5,1.07976]
[1732076425481,3.23282,3093.3,3092.6,0.32335]
[1732076426176,3.2329,3093.2,3092.7,0.0467327]
[1732076426379,3.2930624,3093.1,3092.7,0.0467327]
[1732076426551,3.23289,3093.2,3092.6,0.32335]
[1732076427166,3.23262,3093.5,3092.8,0.32332]
[1732076427497,3.23262,3093.5,3092.9,0.0467284]
[1732076427701,3.23269,3093.4,3092.9,0.0467284]
[1732076427853,3.633152,3093.5,3092.8,0.32332]
[1732076428500,3.633182,3093.5,3092.8,0.32332]
[1732076428694,3.633182,3093.5,3092.9,0.32332]
[1732076428895,3.633182,3093.5,3092.9,0.37003723]
[1732076429062,3.23265,3093.5,3092.9,0.32332]
[1732076429594,3.23262,3093.5,3093.1,0.7719]
[1732076429811,0.0599924,3093.4,3093.1,0.7719]
[1732076429946,3.23216,3093.9,3093.1,1.09519]
[1732076430150,3.23216,3093.9,3093.2,0.32328]
[1732076430369,0.0599924,3093.8,3093.3,0.32327]
[1732076430611,0.0599924,3093.8,3093.3,0.36997864]
[1732076430817,0.0599924,3093.8,3093.3,0.32327]
[1732076431111,3.23245,3093.7,3093.1,0.7719]
[1732076431525,6.46492,3093.7,3093.2,0.04671078]
[1732076431722,3.23245,3093.7,3093.2,0.04671078]
[1732076431878,3.23245,3093.7,3093.1,0.7719]
[1732076431879,3.23271,3093.4,3093.1,0.7719]
[1732076432080,0.0599924,3093.4,3093.1,0.7719]
[1732076432608,0.0599924,3093.4,3093.2,0.08006654]
[1732076432818,3.2926824,3093.4,3093.2,0.08006654]
[1732076432981,3.2926824,3093.4,3093.3,0.08006331]
[1732076433182,3.2926824,3093.4,3093.1,0.7719]
[1732076433382,3.23269,3093.4,3093.1,0.7719]
[1732076433576,3.23269,3093.4,3093.2,0.08006388]
[1732076434034,3.23269,3093.4,3093.1,0.7719]
[1732076434198,3.23269,3093.4,3092.6,0.32334]
[1732076434199,3.23289,3093.2,3092.7,0.7508]
[1732076434584,3.23289,3093.2,3092.8,0.08007679]
[1732076434778,3.23289,3093.2,3092.7,1.07414]
[1732076434980,3.555959,3093.4,3092.7,1.07414]
[1732076435840,3.23279,3093.3,3092.8,0.08007786]
[1732076436131,3.23269,3093.4,3092.9,0.32331]
[1732076436422,0.0599924,3093.3,3092.9,0.08007463]
[1732076436638,0.0599924,3093.3,3092.7,0.7508]
[1732076436805,0.0599924,3093.3,3092.8,0.08008545]
[1732076436806,3.2329,3093.2,3092.8,0.08008545]
[1732076436986,3.2329,3093.2,3092.7,0.7508]
[1732076437187,3.2329,3093.2,3092.8,0.08008545]
[1732076437388,3.2329,3093.2,3092.7,0.7508]
[1732076437890,0.0599924,3093.3,3092.7,0.7508]
[1732076438092,3.23296,3093.2,3092.7,0.7508]
[1732076438309,3.2928424,3093.3,3092.8,0.08008545]
[1732076438835,3.23285,3093.3,3092.7,1.07413]
[1732076439134,3.2329,3093.2,3092.8,0.08008545]
[1732076439329,3.2329,3093.2,3092.7,0.7508]
[1732076439628,3.2329,3093.2,3092.8,0.08008545]
[1732076440144,3.2329,3093.2,3092.7,0.7508]
[1732076440424,3.2329,3093.2,3092.7,1.07413]
[1732076440729,3.23319,3093.0,3092.8,0.08008545]
[1732076441100,3.23319,3093.0,3092.7,0.7508]
[1732076442801,6.46591,3093.2,3092.7,0.7508]
[1732076443004,3.23293,3093.2,3092.7,0.7508]
[1732076443930,3.23301,3093.1,3092.8,0.08008227]
[1732076444249,3.23301,3093.1,3092.7,0.7508]
[1732076444536,3.23293,3093.2,3092.7,0.7508]
[1732076444537,3.23319,3093.0,3092.7,0.7508]
[1732076445588,3.23276,3093.4,3092.7,0.7508]
[1732076445814,3.2331,3093.1,3092.7,0.7508]
[1732076446032,3.2331,3093.1,3092.8,0.08008227]
[1732076446240,3.2331,3093.1,3092.7,0.7508]
[1732076446409,3.2928724,3093.3,3092.7,0.7508]
[1732076446608,3.23291,3093.2,3092.7,0.7508]
[1732076446824,3.23291,3093.2,3092.8,0.08008227]
[1732076447141,3.2927824,3093.3,3092.7,1.07414]
[1732076447442,3.23273,3093.4,3092.9,0.32331]
[1732076447625,6.46551,3093.4,3092.7,1.07413]
[1732076447823,3.23281,3093.3,3092.7,1.07413]
[1732076448024,3.556091,3093.3,3092.8,0.08008227]
[1732076448341,3.23281,3093.3,3092.7,1.07413]
[1732076448524,3.23281,3093.3,3092.9,0.08007904]
[1732076448714,3.23281,3093.3,3092.8,0.08008227]
[1732076448914,3.23281,3093.3,3092.7,1.07413]
[1732076449113,3.233,3093.1,3092.7,0.7508]
[1732076449314,3.233,3093.1,3092.8,0.08008227]
[1732076449514,0.0599924,3093.2,3092.8,0.08008227]
[1732076449515,3.2928924,3093.2,3092.8,0.08008227]
[1732076449841,3.2928924,3093.2,3092.7,1.07414]
[1732076450237,0.0599924,3093.2,3092.8,0.08008227]
[1732076450411,0.0599924,3093.2,3092.7,1.07414]
[1732076450640,0.0599924,3093.2,3092.8,0.08008227]
[1732076450939,0.0599924,3093.2,3092.7,1.07414]
[1732076451137,3.2929424,3093.2,3092.7,0.7508]
[1732076451446,3.2929424,3093.2,3092.7,1.07413]
[1732076451949,3.2929424,3093.2,3092.8,0.08008227]
[1732076452243,3.2929424,3093.2,3092.7,1.07413]
[1732076452399,3.233,3093.1,3092.8,0.08008227]
[1732076452599,0.0599924,3093.1,3092.8,0.08008227]
[1732076452809,3.23295,3093.2,3092.7,0.7508]
[1732076453352,3.23295,3093.2,3092.8,0.08008227]
[1732076453701,3.23295,3093.2,3092.7,1.07414]
[1732076454131,3.23295,3093.2,3092.8,0.08008227]
[1732076454441,3.23295,3093.2,3092.7,0.7508]
[1732076454801,3.2930024,3093.1,3092.8,0.08008383]
[1732076455142,0.0599924,3093.1,3092.7,0.7508]
[1732076455444,3.23295,3093.2,3092.9,0.08008061]
[1732076455744,3.23295,3093.2,3092.7,1.07414]
[1732076456403,3.23269,3093.4,3092.8,0.08008383]
[1732076456622,3.23269,3093.4,3092.9,0.32331]
[1732076456853,3.23247,3093.6,3092.7,1.07413]
[1732076457128,3.23275,3093.4,3092.8,0.08008383]
[1732076457458,0.40518224,3093.5,3092.8,0.08008383]
[1732076457663,3.23274,3093.4,3092.8,0.32333]
[1732076459520,6.46551,3093.4,3092.8,0.32333]
[1732076459762,3.23274,3093.4,3092.8,0.32333]
[1732076460285,0.0599924,3093.3,3092.8,0.32333]
[1732076460436,0.0599924,3093.3,3092.7,0.7508]
[1732076460655,0.0599924,3093.3,3092.8,0.08008383]
[1732076460656,3.2927824,3093.3,3092.8,0.08008383]
[1732076461156,3.2927824,3093.3,3092.8,0.32333]
[1732076461336,3.23279,3093.3,3092.8,0.32333]
[1732076461830,3.23279,3093.3,3092.7,1.07413]
[1732076462145,3.23259,3093.5,3092.7,0.7508]
[1732076462321,3.23259,3093.5,3092.9,0.32331]
[1732076462723,0.7593,3093.7,3092.9,0.32331]
[1732076462724,4.0517124,3093.7,3092.9,0.32331]
[1732076462923,4.0517124,3093.7,3093.0,1.0734]
[1732076462924,3.23254,3093.6,3093.0,1.0734]
[1732076463357,3.23269,3093.4,3093.0,0.7501]
[1732076463561,3.23266,3093.5,3093.0,0.7501]
[1732076463770,3.2327,3093.4,3093.0,0.7501]
[1732076464177,1.16447124,3093.7,3093.0,0.7501]
[1732076464178,3.23249,3093.6,3093.0,1.0734]
[1732076464461,3.99175,3093.7,3093.1,0.32329]
[1732076464621,3.23245,3093.7,3093.1,0.32329]
[1732076464827,4.01796,3093.9,3093.1,0.32329]
[1732076465067,3.23235,3093.8,3093.2,0.32328]
[1732076465248,3.23238,3093.7,3093.3,0.7501]
[1732076465438,3.23235,3093.8,3093.3,0.7501]
[1732076467063,3.23238,3093.7,3093.3,0.7501]
[1732076467235,4.452031,3093.9,3093.3,0.7501]
[1732076467443,4.452031,3093.9,3093.3,1.07337]
[1732076467444,4.01793,3093.9,3093.3,1.07337]
[1732076467794,4.01793,3093.9,3093.3,0.7501]
[1732076468125,0.7857,3093.9,3093.3,0.7501]
[1732076468326,3.23229,3093.8,3093.3,1.07337]
[1732076468872,0.7857,3093.9,3093.3,1.07337]
[1732076469265,3.23234,3093.8,3093.3,0.7501]
[1732076469637,0.7857,3093.9,3093.3,0.7501]
[1732076469884,4.01788,3093.9,3093.3,1.07337]
[1732076470454,0.7857,3093.9,3093.4,0.32326]
[1732076470636,3.23214,3094.0,3093.4,0.32326]
[1732076470842,3.23214,3094.0,3093.3,1.07337]
[1732076471339,3.23191,3094.2,3093.6,0.32324]
[1732076473708,3.23207,3094.0,3093.5,0.8055]
[1732076474691,3.23191,3094.2,3093.5,1.12875]
[1732076476075,3.23191,3094.2,3093.6,0.32323]
[1732076476260,3.23191,3094.2,3093.7,0.07998031]
[1732076476459,4.02818,3094.4,3093.7,0.07998031]
[1732076476695,3.23168,3094.4,3093.8,1.12872]
[1732076477362,3.2317,3094.4,3093.8,1.12872]
[1732076477782,6.46343,3094.4,3093.8,0.8055]
[1732076477991,3.23182,3094.3,3093.8,0.8055]
[1732076478258,0.7965,3094.7,3093.8,0.8055]
[1732076478492,3.23123,3094.8,3094.2,0.32317]
[1732076478662,0.7965,3094.9,3094.3,0.8055]
[1732076478860,3.23102,3095.0,3094.4,0.07994123]
[1732076479063,3.23102,3095.0,3094.3,0.8055]
[1732076479064,0.323102,3094.9,3094.3,0.8055]
[1732076479260,3.23147,3094.6,3094.3,0.8055]
[1732076479460,0.0599924,3094.6,3094.3,0.8055]
[1732076479762,3.2915024,3094.6,3094.3,0.8055]
[1732076480267,3.2914324,3094.6,3094.3,0.8055]
[1732076480464,0.0599924,3094.6,3094.3,0.8055]
[1732076480695,0.0599924,3094.7,3094.3,0.8055]
[1732076481094,3.23147,3094.6,3094.3,0.8055]
[1732076481300,0.0599924,3094.5,3094.3,0.8055]
[1732076481498,3.23124,3094.8,3094.3,0.8055]
[1732076481499,3.2913524,3094.7,3094.3,0.8055]
[1732076481810,0.0599924,3094.7,3094.3,0.8055]
[1732076482160,3.23149,3094.6,3094.3,0.8055]
[1732076482385,0.0599924,3094.5,3094.3,0.8055]
[1732076482983,3.2915824,3094.5,3094.0,0.8055]
[1732076483375,3.2915824,3094.5,3094.1,0.07993547]
[1732076483573,0.0599924,3094.5,3094.0,0.8055]
[1732076483809,0.0599924,3094.5,3094.2,0.07993224]
[1732076483979,0.0599924,3094.5,3094.1,0.07993547]
[1732076484308,0.0599924,3094.5,3094.2,0.07993224]
[1732076484793,0.0599924,3094.5,3094.0,1.12869]
[1732076485106,3.23133,3094.7,3094.1,0.07993547]
[1732076485275,4.02775,3094.8,3094.1,0.07993547]
[1732076485276,3.23146,3094.6,3094.1,0.07993547]
[1732076485477,3.23146,3094.6,3094.0,1.12869]
[1732076485710,0.0599924,3094.5,3094.1,0.07989024]
[1732076486069,3.23146,3094.6,3094.0,1.12869]
[1732076486408,3.23146,3094.6,3094.1,0.07989024]
[1732076486932,3.23146,3094.6,3094.2,0.07988702]
[1732076487515,4.02775,3094.8,3094.1,0.32319]
[1732076487869,3.23133,3094.7,3094.2,0.07988702]
[1732076488072,3.23133,3094.7,3094.1,0.32319]
[1732076488306,3.23133,3094.7,3094.0,0.8055]
[1732076488307,3.2914924,3094.6,3094.2,0.07988702]
[1732076488918,3.2914924,3094.6,3094.1,0.32319]
[1732076489382,3.2914924,3094.6,3094.2,0.07988702]
[1732076489582,3.2914924,3094.6,3094.1,0.32319]
[1732076489815,0.0599924,3094.6,3094.1,0.32319]
[1732076490023,3.23135,3094.7,3094.0,1.12869]
[1732076490366,3.23135,3094.7,3094.1,0.40307386]
[1732076490876,3.23135,3094.7,3094.1,0.32319]
[1732076491226,3.23135,3094.7,3094.2,0.07988064]
[1732076491433,3.2915124,3094.6,3094.2,0.07988064]
[1732076491577,3.2915124,3094.6,3094.0,1.1287]
[1732076491914,3.2915124,3094.6,3094.1,0.07988439]
[1732076492119,3.2915124,3094.6,3094.1,0.40307439]
[1732076492273,3.2915124,3094.6,3094.1,0.32319]
[1732076492673,3.2915124,3094.6,3094.2,0.07988383]
[1732076492915,3.2915124,3094.6,3094.1,0.32319]
[1732076493096,0.0599924,3094.6,3094.1,0.32319]
[1732076493308,3.23133,3094.7,3094.1,0.32319]
[1732076493812,3.23119,3094.9,3094.2,0.07988383]
[1732076494027,3.23119,3094.9,3094.3,1.10617]
[1732076495107,3.23119,3094.9,3094.4,0.32316]
[1732076495834,4.06239,3095.1,3094.4,0.32316]
[1732076496151,4.469115,3095.1,3094.4,0.32316]
[1732076496653,3.23105,3095.0,3094.4,0.32316]
[1732076498350,3.23115,3094.9,3094.3,0.783]
[1732076498517,3.23105,3095.0,3094.3,0.783]
[1732076498707,3.23105,3095.0,3094.4,0.32315]
[1732076499545,3.23088,3095.2,3094.6,0.32314]
[1732076499710,3.23088,3095.2,3094.7,0.783]
[1732076501723,3.23102,3095.0,3094.7,0.783]
[1732076501924,3.23102,3095.0,3094.8,0.07985278]
[1732076502171,3.23088,3095.2,3094.8,0.07985278]
[1732076502379,3.23088,3095.2,3094.7,0.783]
[1732076503221,3.23571,3095.3,3094.8,0.07985278]
[1732076503421,3.23571,3095.3,3094.7,1.10613]
[1732076503663,3.23082,3095.2,3094.7,1.10613]
[1732076504027,0.005,3095.3,3094.7,1.10613]
[1732076504226,3.23081,3095.2,3094.7,0.783]
[1732076505874,3.23094,3095.1,3094.7,0.783]
[1732076506077,3.23113,3094.9,3094.3,0.8041]
[1732076506366,4.03613,3095.3,3094.4,0.07986568]
[1732076506573,3.23081,3095.2,3094.7,0.8041]
[1732076506739,3.634423,3095.2,3094.7,0.8041]
[1732076506943,3.2909024,3095.1,3094.8,0.07985278]
[1732076507338,3.2909024,3095.1,3094.7,0.8041]
[1732076507745,0.0599924,3095.1,3094.8,0.07985278]
[1732076507945,0.0599924,3095.1,3094.7,0.8041]
[1732076508432,0.0599924,3095.1,3094.8,0.07985278]
[1732076508790,0.8054,3095.3,3094.7,1.12723]
[1732076508952,0.005,3095.3,3094.8,0.32311]
[1732076509852,0.005,3095.3,3094.9,0.0798402]
[1732076510182,0.005,3095.3,3094.9,0.32311]
[1732076510884,0.005,3095.3,3095.0,0.8041]
[1732076511040,0.005,3095.3,3095.1,0.32309]
[1732076511384,0.005,3095.3,3095.2,0.07980783]
[1732076512678,0.005,3095.3,3095.2,0.40288783]
[1732076514258,0.005,3095.3,3095.2,1.20698783]
[1732076514843,0.005,3095.3,3095.2,1.27159488]
[1732076515070,0.005,3095.3,3095.2,1.20698783]
[1732076517758,0.005,3095.3,3095.2,0.88390783]
[1732076520860,0.005,3095.3,3095.2,0.07980783]
[1732076521064,0.005,3095.3,3094.9,1.1272]
[1732076521270,0.005,3095.3,3095.0,0.412722]
[1732076521474,0.005,3095.3,3095.0,0.0797704]
[1732076521687,3.23572,3095.3,3095.0,0.0797704]
[1732076521891,3.23572,3095.3,3094.8,0.32312]
[1732076522067,3.23572,3095.3,3094.9,0.07977362]
[1732076522267,3.23572,3095.3,3094.8,0.32312]
[1732076522572,0.005,3095.3,3094.9,0.07976245]
[1732076522786,3.23572,3095.3,3094.9,0.07976245]
[1732076522960,3.23572,3095.3,3094.7,0.32312]
[1732076523166,3.23572,3095.3,3095.0,0.07975923]
[1732076523359,3.23572,3095.3,3094.6,1.12724]
[1732076523360,3.23092,3095.1,3094.6,0.8041]
[1732076523565,0.8004,3094.9,3094.4,0.32316]
[1732076523853,4.0915224,3094.9,3094.4,0.32316]
[1732076524058,4.0915224,3094.9,3094.3,0.8041]
[1732076524059,4.03153,3094.9,3094.5,0.0797721]
[1732076524392,3.23101,3095.0,3094.3,0.8041]
[1732076524558,0.8004,3095.1,3094.6,0.07976021]
[1732076524752,3.23091,3095.1,3094.7,0.8041]
[1732076524953,3.23092,3095.1,3094.7,0.8041]
[1732076525184,6.46178,3095.2,3094.5,0.8041]
[1732076525420,3.23088,3095.2,3094.5,0.86872428]
[1732076525551,3.23088,3095.2,3094.6,0.07978151]
[1732076525748,3.23091,3095.1,3094.6,0.07978151]
[1732076525952,4.03143,3095.0,3094.6,0.07978151]
[1732076526148,4.03143,3095.0,3094.5,0.8041]
[1732076526396,3.23112,3094.9,3094.7,0.07978046]
[1732076526562,3.23112,3094.9,3094.6,0.07978687]
[1732076526763,3.23123,3094.8,3094.1,0.8041]
[1732076526968,4.03143,3095.0,3094.7,0.07978148]
[1732076527169,4.03143,3095.0,3094.1,1.14797443]
[1732076527703,4.03143,3095.0,3094.2,0.88389981]
[1732076527854,4.03143,3095.0,3094.3,0.20318742]
[1732076528188,3.23103,3095.0,3094.4,0.07979336]
[1732076528688,3.23085,3095.2,3094.5,0.8041]
[1732076528901,0.005,3095.3,3094.6,0.06462496]
[1732076529066,0.005,3095.3,3094.7,0.8041]
[1732076529402,0.005,3095.3,3094.9,0.8041]
[1732076529603,0.005,3095.3,3095.0,0.39484986]
[1732076529771,0.005,3095.3,3095.0,0.07977943]
[1732076529955,0.005,3095.3,3094.9,0.86871596]
[1732076530159,0.005,3095.3,3095.1,0.07977512]
[1732076530500,0.005,3095.3,3095.2,0.8041]
[1732076530701,0.005,3095.3,3095.2,0.88387298]
[1732076530858,0.005,3095.3,3095.2,0.8041]
[1732076531944,0.005,3095.3,3095.2,0.88387623]
[1732076532080,0.005,3095.3,3095.2,0.07977623]
[1732076532288,3.23086,3095.2,3094.8,3.0]
[1732076532513,3.23086,3095.2,3094.9,0.0797859]
[1732076532720,3.23086,3095.2,3094.6,0.79]
[1732076532721,3.23107,3095.0,3094.6,0.79]
[1732076532904,3.23107,3095.0,3094.7,0.07979235]
[1732076533100,3.23107,3095.0,3094.6,0.79]
[1732076533425,3.23086,3095.2,3094.7,0.0797891]
[1732076533926,6.46176,3095.2,3094.8,0.07980021]
[1732076534226,6.46176,3095.2,3094.6,0.79]
[1732076534397,3.23086,3095.2,3094.6,0.79]
[1732076534602,3.23086,3095.2,3094.7,0.07980343]
[1732076534924,3.23086,3095.2,3094.6,0.79]
[1732076535088,3.23086,3095.2,3094.7,0.07980018]
[1732076535921,3.23091,3095.1,3094.8,0.07979913]
[1732076536091,3.23091,3095.1,3094.6,0.79]
[1732076537822,3.23091,3095.1,3094.7,0.07980018]
[1732076538211,0.005,3095.3,3094.6,0.79]
[1732076538399,0.005,3095.3,3094.8,0.79]
[1732076538729,0.005,3095.3,3095.0,0.79]
[1732076539033,0.005,3095.3,3095.1,0.07979054]
[1732076540941,0.005,3095.3,3095.0,0.79]
[1732076541234,3.23097,3095.1,3094.5,0.79]
[1732076541529,3.2910624,3095.0,3094.5,0.79]
[1732076541685,3.23095,3095.1,3094.5,0.79]
[1732076542497,3.23101,3095.0,3094.5,0.79]
[1732076546234,3.23091,3095.1,3094.5,0.79]
[1732076546413,0.782,3095.2,3094.0,0.06462437]
[1732076546414,3.23131,3094.8,3094.0,0.06462445]
[1732076546613,3.23131,3094.8,3094.2,0.7618]
[1732076546822,3.23105,3095.0,3094.3,0.37618]
[1732076547167,3.23105,3095.0,3094.2,0.82642844]
[1732076547507,3.23105,3095.0,3094.3,0.07980976]
[1732076547708,3.23105,3095.0,3094.2,0.82642844]
[1732076547908,3.23084,3095.2,3094.4,0.7618]
[1732076549343,3.23092,3095.1,3094.4,0.7618]
[1732076549716,3.23092,3095.1,3094.5,0.07980225]
[1732076550055,3.23114,3094.9,3094.5,0.07980225]
[1732076550416,0.0599924,3094.8,3094.2,0.7618]
[1732076550639,3.23135,3094.7,3094.2,0.7618]
[1732076550849,3.23156,3094.5,3094.3,0.07980391]
[1732076551156,3.23156,3094.5,3094.2,0.7618]
[1732076551358,3.23135,3094.7,3094.2,0.7618]
[1732076551914,3.23144,3094.6,3094.2,0.7618]
[1732076552114,3.23156,3094.5,3094.2,0.7618]
[1732076553146,3.629515,3094.7,3094.2,0.7618]
[1732076553364,0.398165,3094.7,3094.2,0.7618]
[1732076553526,3.23132,3094.8,3094.2,0.7618]
[1732076553733,3.23156,3094.5,3094.2,0.7618]
[1732076554663,3.23141,3094.7,3094.2,0.7618]
[1732076555019,3.23144,3094.6,3094.2,0.7618]
[1732076555256,3.629445,3094.8,3094.2,0.7618]
[1732076555624,0.398145,3094.8,3094.2,0.7618]
[1732076555963,3.23134,3094.7,3094.2,0.7618]
[1732076556465,3.98145,3094.9,3094.2,0.7618]
[1732076556628,3.23135,3094.7,3094.2,0.7618]
[1732076557264,3.2315,3094.6,3094.2,0.7618]